Cogmind - Beta 10.2 --- EXPLORER MODE // 2021.08.19 @ 11:27:20 Player: taylor Result: Destroyed by B-74 Champion with Powered Hammer Performance ------------- Evolutions (6) 3000 Regions Visited (16) 3200 Robots Destroyed (214) 1070 Value Destroyed (9611) 9611 Prototype IDs (4) 80 Alien Tech Used (0) 0 Bonus (9585) 9585 TOTAL SCORE: 26546 Bonus ------- High Alert Combat Kills 238 Follower Combat Kills 2080 Met Warlord at Base 500 MAIN.C Attacked Warlord 500 Warlord Defense Kill 5252 Built Enhanced Grunts 300 A7 Reached Mainframe 300 Met R17 at Cetus 500 Friendly Fire -85 Cogmind --------- Core Integrity 0/1150 Matter 194/300 Energy 100/100 System Corruption 0% Temperature Cool (0) Movement Core (50) Location -3/Proximity Caves Parts ------- > --- POWER (2) -------- (None) > --- PROPULSION (5) --- (None) > --- UTILITY (8) ------ (None) > --- WEAPON (5) ------- (None) > --- INVENTORY (4) ---- Advanced Heavy Treads Improved Energy Well (600) Peak State ------------ > --- POWER ------------ Neutrino Core Micro Fission Core > --- PROPULSION ------- Armored Medium Treads Armored Medium Treads Armored Medium Treads Centrium Heavy Treads > --- UTILITY ---------- Advanced Heat Sink Large Storage Unit Matter Compressor Advanced Weight Redist. System Advanced Targeting Computer Improved Kinecellerator Hardened Medium Armor Plating Layered Light Armor Plating > --- WEAPON ----------- Coil Gun KE Penetrator Improved KE Penetrator Heavy Flak Cannon Mass Driver > --- INVENTORY -------- Light Antimatter Reactor Armored Medium Treads Heavy Treads Improved Energy Well Hardened Medium Armor Plating KE Penetrator Heavy Missile Launcher Micro-nuke Launcher [Rating: 113] Favorites ----------- Power Reinforced Deuterium Engine Engine Reinforced Deuterium Engine Power Core Neutrino Core Reactor Quantum Reactor Propulsion Armored Medium Treads Treads Armored Medium Treads Utility Large Storage Unit Device Matter Filter Storage Large Storage Unit Processor Advanced Targeting Computer Protection Utility Shielding Weapon Heavy Flak Cannon Energy Gun EM Pulse Gun Ballistic Gun Improved KE Penetrator Ballistic Cannon Heavy Flak Cannon Launcher Micro-nuke Launcher Build | -11 -10 -9 -9 -8 -7 -6 -6 -6 -6 -6 -5 -4 -4 -4 -4 -3 ------- Run | Scr Mat Mat Min Mat Fac Fac Ext Cet Arc Hub Fac Fac Upp Upp War Pro Slots Evolved 13 | . 1 2 . 2 2 2 . . . . 2 2 . . . . Power 1 | . 1 . . . . . . . . . . . . . . . Propulsion 3 | . . . . 1 . . . . . . 1 1 . . . . Utility 6 | . . 1 . 1 1 2 . . . . . 1 . . . . Weapon 3 | . . 1 . . 1 . . . . . 1 . . . . . Parts Attached 95 | 7 2 5 . 8 12 6 6 3 . 3 22 6 2 1 9 3 Power 16 | 1 1 1 . 1 3 . 2 1 . . 1 2 1 . 2 . Engine 10 | 1 1 1 . 1 3 . 1 . . . 1 . . . 1 . Core 4 | . . . . . . . 1 . . . . 2 1 . . . Reactor 2 | . . . . . . . . 1 . . . . . . 1 . Propulsion 21 | 2 . . . 3 2 2 . 1 . . 4 1 . . 4 2 Treads 21 | 2 . . . 3 2 2 . 1 . . 4 1 . . 4 2 Leg . | . . . . . . . . . . . . . . . . . Wheel . | . . . . . . . . . . . . . . . . . Hover . | . . . . . . . . . . . . . . . . . Flight . | . . . . . . . . . . . . . . . . . Utility 31 | 2 1 1 . 4 2 3 1 . . 3 9 2 1 . 1 1 Device 9 | . . . . 2 . 2 . . . . 4 1 . . . . Storage 7 | 1 1 . . . 1 . . . . 3 . . . . . 1 Processor 3 | . . . . . . 1 . . . . 2 . . . . . Hackware . | . . . . . . . . . . . . . . . . . Protection 12 | 1 . 1 . 2 1 . 1 . . . 3 1 1 . 1 . Artifact . | . . . . . . . . . . . . . . . . . Weapon 27 | 2 . 3 . . 5 1 3 1 . . 8 1 . 1 2 . Energy Gun 2 | 2 . . . . . . . . . . . . . . . . Energy Cannon . | . . . . . . . . . . . . . . . . . Ballistic Gun 14 | . . 2 . . 3 1 . 1 . . 5 1 . 1 . . Ballistic Cannon 8 | . . 1 . . 2 . 2 . . . 3 . . . . . Launcher 3 | . . . . . . . 1 . . . . . . . 2 . Special Weapon . | . . . . . . . . . . . . . . . . . Impact Weapon . | . . . . . . . . . . . . . . . . . Slashing Weapon . | . . . . . . . . . . . . . . . . . Piercing Weapon . | . . . . . . . . . . . . . . . . . Special Melee Weapon . | . . . . . . . . . . . . . . . . . Unidentified Prototypes 4 | . . . . . . . . 2 . 1 1 . . . . . Parts Lost 33 | . . . . . 1 . 1 . . . 7 . 1 . 14 9 Power 5 | . . . . . 1 . . . . . 1 . . . 2 1 Propulsion 7 | . . . . . . . . . . . . . . . 3 4 Utility 10 | . . . . . . . . . . . 2 . 1 . 4 3 Weapon 11 | . . . . . . . 1 . . . 4 . . . 5 1 Highest Loss Streak 6 | . . . . . 1 . 1 . . . 2 . 1 . 6 6 Average Slot Usage (%) 94 | . 100 100 100 100 99 99 99 93 93 92 91 91 94 95 93 27 Engine 9 | . 25 20 20 16 13 12 7 6 6 6 8 5 3 . . . Core 2 | . . . . . . . 4 . . . . 1 6 10 8 2 Reactor 1 | . . . . . . . . 5 6 6 1 . . . . . Treads 18 | . 25 20 20 25 21 17 18 12 12 12 15 20 20 20 21 8 Device 9 | . . . . 8 7 12 12 12 12 12 10 15 15 15 14 2 Storage 10 | . 12 10 10 8 14 12 12 12 12 11 11 10 10 10 10 8 Processor 3 | . . . . . . 6 6 6 6 6 3 5 5 5 5 2 Protection 12 | . 12 20 20 16 14 12 12 12 12 12 12 10 9 10 9 1 Ballistic Gun 15 | . . 19 20 16 17 16 13 17 18 18 14 15 15 15 13 1 Ballistic Cannon 8 | . . 7 10 8 10 7 10 6 6 6 12 10 10 10 8 . Naked Turns 137 | . . . . . . . . . . . . . . . . 137 Heaviest Build 106 | 18 29 38 38 45 65 69 80 90 90 91 106 101 101 91 92 44 Greatest Support 170 | 40 40 40 40 60 62 82 82 110 110 110 160 170 170 170 170 144 Greatest Overweight (x) 8 | . . . . . 1 3 . . . . 1 . . . . 8 Average Overweight (x) . | . . . . . . . . . . . . . . . . . Largest Inventory Capacity 10 | 8 10 10 10 10 10 10 10 10 10 10 10 10 10 10 10 10 Average Capacity 9 | 7 8 10 10 10 10 10 10 10 10 9 10 10 10 10 10 7 Most Carried 10 | 4 5 10 10 10 10 10 10 10 10 10 10 10 10 10 10 3 Average Carried 8 | 1 3 6 9 9 9 9 7 9 10 9 7 7 9 9 8 . Final Capacity 10 | 8 10 10 10 10 10 10 10 10 10 10 10 10 10 10 10 4 Final Carried 10 | 2 5 10 10 10 10 10 7 10 10 8 8 10 10 9 3 3 Class Distribution -------------------- 31% | Hacker-Tank 29% | Hacker-Gunner 15% | Scavenger-Gunner 11% | Scavenger-Tank 6% | Hacker-Mutant 4% | Commander-Gunner Dominant Class ---------------- Hacker-Mutant | -10/Materials Hacker-Tank | -9/Materials Hacker-Tank | -9/Mines Hacker-Tank | -8/Materials Hacker-Tank | -7/Factory Hacker-Gunner | -6/Factory Hacker-Gunner | -6/Extension Commander-Gunner | -6/Cetus Commander-Gunner | -6/Archives Hacker-Gunner | -6/Hub_04(d) Scavenger-Tank | -5/Factory Scavenger-Gunner | -4/Factory Scavenger-Gunner | -4/Upper Caves Hacker-Gunner | -4/Upper Caves Hacker-Gunner | -4/Warlord Hacker-Mutant | -3/Proximity Caves Resources | -11 -10 -9 -9 -8 -7 -6 -6 -6 -6 -6 -5 -4 -4 -4 -4 -3 ----------- Run | Scr Mat Mat Min Mat Fac Fac Ext Cet Arc Hub Fac Fac Upp Upp War Pro Matter Collected 5751 | 213 67 183 208 306 455 174 465 76 26 442 1342 179 740 236 530 109 Remotely . | . . . . . . . . . . . . . . . . . Salvage Created 7241 | . 94 183 94 461 794 287 392 20 66 356 2302 124 631 284 1153 . Parts 365 | . 10 16 4 29 41 16 31 3 1 26 122 9 23 6 28 . Haulers Intercepted . | . . . . . . . . . . . . . . . . . Recyclers Shooed 2 | . . . . . . . . . . . 2 . . . . . Parts Field Recycled . | . . . . . . . . . . . . . . . . . Retrieved Matter . | . . . . . . . . . . . . . . . . . Parts Self-Destructed . | . . . . . . . . . . . . . . . . . Prevented . | . . . . . . . . . . . . . . . . . Kills | -11 -10 -9 -9 -8 -7 -6 -6 -6 -6 -6 -5 -4 -4 -4 -4 -3 ------- Run | Scr Mat Mat Min Mat Fac Fac Ext Cet Arc Hub Fac Fac Upp Upp War Pro Combat Hostiles Destroyed 161 | . 4 9 2 10 16 4 9 1 1 5 38 1 14 5 42 . Guns 73 | . 2 5 2 5 9 3 2 1 . 4 20 1 9 3 7 . Cannons 48 | . . 4 . 5 6 1 5 . 1 1 16 . 5 2 2 . AOE 40 | . 2 . . . 1 . 2 . . . 2 . . . 33 . Classes Destroyed 19 | . 2 1 1 2 3 1 1 . . . 2 . . . 6 . Worker 9 | . . . . . 1 . 1 . . . 7 . . . . . Builder 12 | . . . . 1 2 . 3 . . 1 5 . . . . . Tunneler 2 | . . . . . . . . . . . 2 . . . . . Recycler 3 | . . . . . 1 1 . . . . 1 . . . . . Mechanic 1 | . . . . . . . . . . . . . . . 1 . Operator 6 | . . . . . . 1 1 . . 2 1 1 . . . . Watcher 20 | . 1 2 . 3 2 2 2 . . 1 6 1 . . . . Swarmer 35 | . 4 7 . 3 . 4 . 1 . . . . 6 . 10 . Grunt 59 | . . . 2 3 9 . 4 . . 2 16 . 7 4 12 . Brawler 7 | . . . . 1 1 . . . . . . . . . 5 . Duelist 2 | . . . . . . . . . . . . . . . 2 . Protector 5 | . . . . . . . . . . . . . . . 5 . Sentry 19 | . . 2 . 3 1 . 3 . 1 2 4 1 1 1 . . Demolisher 1 | . . . . . . . . . . . . . . . 1 . Hunter 6 | . . . . . . . . . . . 6 . . . . . Programmer 18 | . . . . . 5 . . . . 1 11 . . . 1 . Behemoth 4 | . . . . . . . 2 . . . 1 . . . 1 . Striker 3 | . . . . . . . . . . . . . . . 3 . Executioner 2 | . . . . . . . . . . . . . . . 2 . Best Kill Streak 29 | . 4 3 2 5 4 3 10 1 1 2 7 2 7 3 29 . Combat Bots Only 28 | . 4 3 2 3 3 2 4 1 1 1 5 1 7 3 28 . Max Kills in Single Turn 6 | . 3 1 1 1 3 2 3 1 1 2 3 1 2 1 6 . Gunslinging . | . . . . . . . . . . . . . . . . . Exploded 6 | . 2 . . . 1 . 1 . . . 2 . . . 6 . Melee . | . . . . . . . . . . . . . . . . . Uniques/NPCs Destroyed . | . . . . . . . . . . . . . . . . . Combat | -11 -10 -9 -9 -8 -7 -6 -6 -6 -6 -6 -5 -4 -4 -4 -4 -3 -------- Run | Scr Mat Mat Min Mat Fac Fac Ext Cet Arc Hub Fac Fac Upp Upp War Pro Damage Taken 11125 | . 37 202 34 146 397 50 800 21 60 221 2808 79 711 302 3147 2110 Core 2002 | . . 11 . 13 9 . 43 5 31 16 724 . 165 . 192 793 Absorbed by Shields 41 | . . . . . . . 21 20 . . . . . . . . Core Remaining (%) 86 | 100 100 . 97 97 98 . . . . 88 27 . . . . . Volleys Fired 301 | . 4 26 3 31 38 11 22 5 3 17 71 3 18 11 35 3 Largest 5 | . 2 3 3 3 4 4 4 4 4 4 5 5 5 5 5 1 Hottest 224 | . 80 82 82 82 131 117 147 138 138 138 224 210 208 208 222 33 Shots Fired 1158 | . 8 78 9 93 144 41 79 17 10 65 330 15 90 43 133 3 Gun 711 | . 8 52 6 62 85 30 47 11 7 48 189 9 54 25 75 3 Cannon 405 | . . 26 3 31 59 11 25 6 3 17 141 6 36 18 23 . Launcher 42 | . . . . . . . 7 . . . . . . . 35 . Special . | . . . . . . . . . . . . . . . . . Kinetic 1108 | . . 78 9 93 144 41 72 17 10 65 330 15 90 43 98 3 Thermal . | . . . . . . . . . . . . . . . . . Explosive 42 | . . . . . . . 7 . . . . . . . 35 . Electromagnetic 8 | . 8 . . . . . . . . . . . . . . . Robot Hit Streak 79 | . 6 16 6 35 23 11 79 24 32 24 54 18 39 21 34 2 Robot Miss Streak 5 | . 1 3 1 4 3 3 3 1 1 2 5 1 1 1 1 1 Penetration Max 1 | . . . . . . . . . . 1 1 . 1 1 1 . Secondary Targets 2 | . 2 . . . . . . . . . . . . . . . Max Gunslinging Chain 1 | . 1 . . . . . . . . . . . . . . . Shots Hit Robots 837 | . 6 55 5 74 102 25 72 14 8 49 232 10 59 36 88 2 Core Hits 610 | . 5 15 3 32 49 16 66 12 6 32 168 6 35 14 138 13 Critical Hits 47 | . . . . 3 1 2 . . 2 3 18 . 4 5 8 1 Critical Kills 23 | . . . . 2 1 2 . . . 2 9 . 3 1 3 . Critical Parts Destroyed 21 | . . . . 1 . . . . 1 1 8 . 1 3 5 1 Melee Attacks . | . . . . . . . . . . . . . . . . . Impact . | . . . . . . . . . . . . . . . . . Slashing . | . . . . . . . . . . . . . . . . . Piercing . | . . . . . . . . . . . . . . . . . Sneak Attacks . | . . . . . . . . . . . . . . . . . Combat Hostiles . | . . . . . . . . . . . . . . . . . Follow-up Attacks . | . . . . . . . . . . . . . . . . . Damage Inflicted 27861 | . 136 671 76 987 2211 408 2350 386 201 1119 7202 189 1661 1056 9108 100 Guns 12535 | . 64 391 52 560 1293 306 949 188 75 902 4202 151 1051 742 1570 39 Cannons 6939 | . . 280 24 427 595 23 746 198 126 213 2748 29 610 314 606 . Explosions 8307 | . 72 . . . 323 79 655 . . . 250 . . . 6928 . Melee . | . . . . . . . . . . . . . . . . . Ramming 80 | . . . . . . . . . . 4 2 9 . . 4 61 Kinetic 19410 | . . 671 76 987 1888 329 1695 386 201 1115 6950 180 1661 1056 2176 39 Thermal 655 | . 72 . . . 323 79 . . . . 181 . . . . . Explosive 7652 | . . . . . . . 655 . . . 69 . . . 6928 . Electromagnetic 64 | . 64 . . . . . . . . . . . . . . . Impact . | . . . . . . . . . . . . . . . . . Slashing . | . . . . . . . . . . . . . . . . . Piercing . | . . . . . . . . . . . . . . . . . Highest Corruption 6 | . . . . . 1 . . . . . 6 . . . . . Average Corruption 2 | . . . . . 1 . . . . . 2 . . . . . Corruption Purged . | . . . . . . . . . . . . . . . . . Effects 23 | . . . . . . . . . . . 23 . . . . . Message Errors 8 | . . . . . . . . . . . 8 . . . . . Matter Fused 1 | . . . . . . . . . . . 1 . . . . . Heat Flow Errors 3 | . . . . . . . . . . . 3 . . . . . Energy Discharges 1 | . . . . . . . . . . . 1 . . . . . Data Loss (minor) 1 | . . . . . . . . . . . 1 . . . . . Misfires 2 | . . . . . . . . . . . 2 . . . . . Targeting Errors 6 | . . . . . . . . . . . 6 . . . . . Weapon Failures 1 | . . . . . . . . . . . 1 . . . . . Overload Shots . | . . . . . . . . . . . . . . . . . Overflow Damage 293 | . . 13 . 13 36 . 1 . . 6 48 . 16 . 160 . Projectiles 78 | . . 13 . 13 10 . . . . 6 9 . 16 . 11 . Explosions 215 | . . . . . 26 . 1 . . . 39 . . . 149 . Melee . | . . . . . . . . . . . . . . . . . Knockbacks 59 | . . 1 1 1 11 . 5 . . 2 26 . 7 . 4 1 Impact 1 | . . . . . . . . . . . . . . . . 1 Kinetic 54 | . . 1 1 1 9 . 5 . . 2 24 . 7 . 4 . Secondary 4 | . . . . . 2 . . . . . 2 . . . . . Self-Inflicted Damage 254 | . 9 . . . 26 . . . . . . . . . 202 17 Shots 6 | . 1 . . . 1 . . . . . . . . . 4 . Rammed 18 | . . . . . . . . . . 1 1 . . . 1 15 Targets Rammed 19 | . . . . . . . . . . 1 1 1 . . 1 15 Kicked . | . . . . . . . . . . . . . . . . . Crushed 1 | . . . . . . . . . . . . 1 . . . . Highest Temperature 854 | . 78 252 135 287 389 247 417 139 215 288 854 219 703 409 327 . Average Temperature 135 | . 38 81 70 88 113 92 153 57 98 96 194 96 249 182 112 . Received Heat Transfer 2264 | . . 27 30 54 198 . 205 4 9 96 498 9 168 105 408 453 Effects 102 | . . . . . 6 . 5 . . . 62 . 19 8 2 . Shutdowns 26 | . . . . . 2 . 2 . . . 15 . 6 1 . . Energy Bleed 7 | . . . . . 1 . . . . . 4 . 2 . . . Interference 26 | . . . . . 1 . . . . . 12 . 4 7 2 . Matter Decay 10 | . . . . . . . 3 . . . 5 . 2 . . . Short Circuit 6 | . . . . . 1 . . . . . 4 . 1 . . . Damage (minor) 10 | . . . . . 1 . . . . . 7 . 2 . . . Damage (major) 11 | . . . . . . . . . . . 10 . 1 . . . Damage (core) 6 | . . . . . . . . . . . 5 . 1 . . . Siege Activations 1 | . . . . . . . . . . . . . . . . 1 Total Turns 10 | . . . . . . . . . . . . . . . . 10 Longest Duration 10 | . . . . . . . . . . . . . . . . 10 Robots Corrupted . | . . . . . . . . . . . . . . . . . Combat Hostiles . | . . . . . . . . . . . . . . . . . Parts Fried . | . . . . . . . . . . . . . . . . . Impact Corruptions . | . . . . . . . . . . . . . . . . . Robots Melted . | . . . . . . . . . . . . . . . . . Combat Hostiles . | . . . . . . . . . . . . . . . . . Parts Melted 1 | . . . . . 1 . . . . . . . . . . . Heat Transferred 500 | . 50 . . . 250 50 . . . . 150 . . . . . Parts Sabotaged . | . . . . . . . . . . . . . . . . . Parts Stolen . | . . . . . . . . . . . . . . . . . Parts Stripped . | . . . . . . . . . . . . . . . . . Power Chain Reactions 1 | . 1 . . . . . . . . . . . . . . . Missiles Intercepted . | . . . . . . . . . . . . . . . . . Alert | -11 -10 -9 -9 -8 -7 -6 -6 -6 -6 -6 -5 -4 -4 -4 -4 -3 ------- Run | Scr Mat Mat Min Mat Fac Fac Ext Cet Arc Hub Fac Fac Upp Upp War Pro Peak Influence 605 | . 128 246 67 159 206 262 317 325 102 605 488 460 . . . . Initial 82 | . . . 67 13 21 73 2 7 . 24 82 . . . . . Average 106 | . 30 84 36 55 48 110 127 157 90 309 143 65 . . . . Maximum Alert Level 2 | . . 1 . . 1 1 1 1 . 2 2 2 . . . . Low Security (%) 81 | 100 100 81 100 100 99 96 81 45 100 16 76 87 . . . . Level 1 15 | . . 18 . . . 3 18 54 . 55 21 . . . . . Level 2 3 | . . . . . . . . . . 28 1 12 . . . . Level 3 . | . . . . . . . . . . . . . . . . . Level 4 . | . . . . . . . . . . . . . . . . . Level 5 . | . . . . . . . . . . . . . . . . . High Security . | . . . . . . . . . . . . . . . . . Max Security . | . . . . . . . . . . . . . . . . . Squads Dispatched 30 | . . . 1 . 8 2 3 . . 5 8 2 . . . 1 Investigation 10 | . . . 1 . 1 2 1 . . 2 2 1 . . . . Extermination 12 | . . . . . 5 . . . . 1 5 1 . . . . Reinforcement 7 | . . . . . 2 . 2 . . 2 1 . . . . . Assault 1 | . . . . . . . . . . . . . . . . 1 Garrison . | . . . . . . . . . . . . . . . . . Intercept . | . . . . . . . . . . . . . . . . . Construction Impeded 2 | . . . . . 1 . 1 . . . . . . . . . Haulers Reinforced . | . . . . . . . . . . . . . . . . . Stealth | -11 -10 -9 -9 -8 -7 -6 -6 -6 -6 -6 -5 -4 -4 -4 -4 -3 --------- Run | Scr Mat Mat Min Mat Fac Fac Ext Cet Arc Hub Fac Fac Upp Upp War Pro Distress Signals 12 | . . 1 . 1 . 1 1 2 . 4 1 1 . . . . Communications Jammed . | . . . . . . . . . . . . . . . . . Distress Signals . | . . . . . . . . . . . . . . . . . Times Spotted 296 | . 7 14 3 19 24 8 21 17 3 27 53 3 14 5 50 28 Peak Tracking Total 13 | . 4 3 2 4 4 4 7 5 1 3 6 3 7 3 12 13 Tactical Retreats 18 | . . 1 . . 1 . 2 . . 2 3 . . . . 9 Traps | -11 -10 -9 -9 -8 -7 -6 -6 -6 -6 -6 -5 -4 -4 -4 -4 -3 ------- Run | Scr Mat Mat Min Mat Fac Fac Ext Cet Arc Hub Fac Fac Upp Upp War Pro Traps Triggered 6 | . 1 1 . . 3 . . . . . 1 . . . . . Indirectly . | . . . . . . . . . . . . . . . . . Trap Hack Attempts . | . . . . . . . . . . . . . . . . . Triggered . | . . . . . . . . . . . . . . . . . Disarmed 6 | . . . . . 6 . . . . . . . . . . . Reprogrammed . | . . . . . . . . . . . . . . . . . Reused . | . . . . . . . . . . . . . . . . . Traps Extracted . | . . . . . . . . . . . . . . . . . Installed . | . . . . . . . . . . . . . . . . . Triggered 22 | . . . . . . . . . . . . . . . 22 . Machines | -11 -10 -9 -9 -8 -7 -6 -6 -6 -6 -6 -5 -4 -4 -4 -4 -3 ---------- Run | Scr Mat Mat Min Mat Fac Fac Ext Cet Arc Hub Fac Fac Upp Upp War Pro Machines Disabled 40 | . . . . . 14 1 1 1 1 3 11 1 3 . 4 . Max in Single Turn 13 | . . . . . 13 1 . 1 . 1 9 1 1 . 2 . Garrison Access 1 | . . . . 1 . . . . . . . . . . . . Machines Sabotaged . | . . . . . . . . . . . . . . . . . Garrisons Compromised . | . . . . . . . . . . . . . . . . . Overloaded Fab Kills . | . . . . . . . . . . . . . . . . . Fab Network Shutdowns 1 | . . . . . . . . . . . . 1 . . . . Hacking | -11 -10 -9 -9 -8 -7 -6 -6 -6 -6 -6 -5 -4 -4 -4 -4 -3 --------- Run | Scr Mat Mat Min Mat Fac Fac Ext Cet Arc Hub Fac Fac Upp Upp War Pro Machines Accessed 41 | . 1 3 1 7 3 3 8 2 1 4 3 2 . . 3 . Terminals 31 | . 1 3 . 5 3 2 8 2 . 4 2 1 . . . . Fabricators 3 | . . . . . . 1 . . . . 1 1 . . . . Repair Stations . | . . . . . . . . . . . . . . . . . Recycling Units . | . . . . . . . . . . . . . . . . . Scanalyzers 1 | . . . . 1 . . . . . . . . . . . . Garrison Access 1 | . . . . 1 . . . . . . . . . . . . Total Hacks 114 | . 3 7 1 25 10 7 10 5 25 7 6 4 . . 4 . Successful 86 | . 2 4 1 17 8 5 8 5 25 4 . 3 . . 4 . Failed 28 | . 1 3 . 8 2 2 2 . . 3 6 1 . . . . Catastrophic 2 | . . . . 1 . . . . . . . 1 . . . . Database Lockouts . | . . . . . . . . . . . . . . . . . Manual 18 | . . . . . . . 1 4 4 4 2 . . . 3 . Terminals 70 | . 3 7 . 19 10 4 10 5 . 7 4 1 . . . . Fabricators 8 | . . . . . . 3 . . . . 2 3 . . . . Repair Stations . | . . . . . . . . . . . . . . . . . Recycling Units . | . . . . . . . . . . . . . . . . . Scanalyzers 4 | . . . . 4 . . . . . . . . . . . . Garrison Access 2 | . . . . 2 . . . . . . . . . . . . Terminal Hacks 78 | . 2 4 1 12 8 4 8 5 25 4 . 1 . . 4 . Record 44 | . 1 1 . 5 2 1 . 4 25 2 . 1 . . 2 . Part Schematic 1 | . . . . . 1 . . . . . . . . . . . Robot Schematic 1 | . . . . . . 1 . . . . . . . . . . Open Door 13 | . . . 1 . . 1 8 1 . . . . . . 2 . Level Access Points 2 | . 1 . . . 1 . . . . . . . . . . . Emergency Access Points 2 | . . 2 . . . . . . . . . . . . . . Machine Index 1 | . . . . 1 . . . . . . . . . . . . Terminal Index 1 | . . . . . 1 . . . . . . . . . . . Fabricator Index 2 | . . . . . . 1 . . . 1 . . . . . . Alert Level 1 | . . . . 1 . . . . . . . . . . . . Locate Traps 1 | . . . . . 1 . . . . . . . . . . . Disarm Traps 1 | . . . . . 1 . . . . . . . . . . . Dispatch Records 1 | . . . . 1 . . . . . . . . . . . . Hauler Manifests 2 | . . . . 1 1 . . . . . . . . . . . Registered Components 2 | . . 1 . 1 . . . . . . . . . . . . Zone Layout 3 | . . . . 2 . . . . . 1 . . . . . . Fabricator Hacks 3 | . . . . . . 1 . . . . . 2 . . . . Load Schematic 2 | . . . . . . 1 . . . . . 1 . . . . Build 1 | . . . . . . . . . . . . 1 . . . . Repair Station Hacks . | . . . . . . . . . . . . . . . . . Recycling Unit Hacks . | . . . . . . . . . . . . . . . . . Scanalyzer 4 | . . . . 4 . . . . . . . . . . . . Insert Component 2 | . . . . 2 . . . . . . . . . . . . Analyze 2 | . . . . 2 . . . . . . . . . . . . Garrison Access Hacks 1 | . . . . 1 . . . . . . . . . . . . Seal Access 1 | . . . . 1 . . . . . . . . . . . . Unauthorized Hacks . | . . . . . . . . . . . . . . . . . Terminals . | . . . . . . . . . . . . . . . . . Fabricators . | . . . . . . . . . . . . . . . . . Repair Stations . | . . . . . . . . . . . . . . . . . Recycling Units . | . . . . . . . . . . . . . . . . . Scanalyzers . | . . . . . . . . . . . . . . . . . Garrison Access . | . . . . . . . . . . . . . . . . . Data Cores Recovered 3 | . . . . . . 1 . . . . 1 1 . . . . Used 2 | . . . . . . 1 . . . . 1 . . . . . Hacking Detections 23 | . 1 1 . 5 3 2 2 1 . 4 3 1 . . . . Full Trace Events 10 | . 1 . . . 1 2 1 . . 2 2 1 . . . . Feedback Events . | . . . . . . . . . . . . . . . . . Feedback Blocked . | . . . . . . . . . . . . . . . . . Robot Schematics Acquired 1 | . . . . . . 1 . . . . . . . . . . Robots Built . | . . . . . . . . . . . . . . . . . Matter . | . . . . . . . . . . . . . . . . . Time . | . . . . . . . . . . . . . . . . . Total Robot Build Rating . | . . . . . . . . . . . . . . . . . Part Schematics Acquired 3 | . . . . 2 1 . . . . . . . . . . . Parts Built 2 | . . . . . . . . . . . . 2 . . . . Matter 212 | . . . . . . . . . . . . 212 . . . . Time 35 | . . . . . . . . . . . . 35 . . . . Total Part Build Rating 12 | . . . . . . . . . . . . 12 . . . . Parts Repaired . | . . . . . . . . . . . . . . . . . Time . | . . . . . . . . . . . . . . . . . Parts Recycled . | . . . . . . . . . . . . . . . . . Recycled Matter . | . . . . . . . . . . . . . . . . . Retrieved Matter . | . . . . . . . . . . . . . . . . . Retrieved Components . | . . . . . . . . . . . . . . . . . Parts Scanalyzed 2 | . . . . 2 . . . . . . . . . . . . Part Schematics Acquired 2 | . . . . 2 . . . . . . . . . . . . Parts Damaged . | . . . . . . . . . . . . . . . . . Bothacking | -11 -10 -9 -9 -8 -7 -6 -6 -6 -6 -6 -5 -4 -4 -4 -4 -3 ------------ Run | Scr Mat Mat Min Mat Fac Fac Ext Cet Arc Hub Fac Fac Upp Upp War Pro Used RIF Installer . | . . . . . . . . . . . . . . . . . Robots Hacked . | . . . . . . . . . . . . . . . . . Non-combat . | . . . . . . . . . . . . . . . . . Combat . | . . . . . . . . . . . . . . . . . Robot Hacks Applied . | . . . . . . . . . . . . . . . . . Relay Couplers Released 4 | . . . . . 4 . . . . . . . . . . . Programmers 4 | . . . . . 4 . . . . . . . . . . . Robots Rewired . | . . . . . . . . . . . . . . . . . Allies Hacked . | . . . . . . . . . . . . . . . . . Hacks Repelled . | . . . . . . . . . . . . . . . . . Allies | -11 -10 -9 -9 -8 -7 -6 -6 -6 -6 -6 -5 -4 -4 -4 -4 -3 -------- Run | Scr Mat Mat Min Mat Fac Fac Ext Cet Arc Hub Fac Fac Upp Upp War Pro Total Allies 17 | . . . . . . . 12 5 . . . . . . . . Largest Group 12 | . . . . . . . 11 12 9 6 1 . . . . . Highest-Rated Group 806 | . . . . . . . 444 806 717 493 88 . . . . . Highest-Rated Ally 156 | . . . . . . . 156 156 156 94 88 . . . . . Total Orders . | . . . . . . . . . . . . . . . . . Ally Attacks 233 | . . . . . . . 36 115 14 68 . . . . . . Total Damage 6564 | . . . . . . . 695 3151 334 2384 . . . . . . Kills 52 | . . . . . . . 8 22 3 19 . . . . . . Allies Corrupted 1 | . . . . . . . . . . 1 . . . . . . Allies Melted 1 | . . . . . . . . 1 . . . . . . . . Intel | -11 -10 -9 -9 -8 -7 -6 -6 -6 -6 -6 -5 -4 -4 -4 -4 -3 ------- Run | Scr Mat Mat Min Mat Fac Fac Ext Cet Arc Hub Fac Fac Upp Upp War Pro Robot Analysis Total . | . . . . . . . . . . . . . . . . . Derelict Logs Recovered 3 | . . . 2 . . . . . . . . . 1 . . . Drone Launches . | . . . . . . . . . . . . . . . . . Drone Recoveries . | . . . . . . . . . . . . . . . . . Exploration | -11 -10 -9 -9 -8 -7 -6 -6 -6 -6 -6 -5 -4 -4 -4 -4 -3 ------------- Run | Scr Mat Mat Min Mat Fac Fac Ext Cet Arc Hub Fac Fac Upp Upp War Pro Turns Passed 17392 | 108 498 757 1042 1434 2275 493 860 813 303 1030 2473 329 1534 1037 1956 450 Spaces Moved 8930 | 45 220 413 382 751 1234 283 404 427 172 581 1152 94 848 582 931 411 Core 276 | 6 . . . . . . . . . . . . . . . 270 Treads 8654 | 39 220 413 382 751 1234 283 404 427 172 581 1152 94 848 582 931 141 Legs . | . . . . . . . . . . . . . . . . . Wheels . | . . . . . . . . . . . . . . . . . Hover . | . . . . . . . . . . . . . . . . . Flight . | . . . . . . . . . . . . . . . . . Fastest Speed 50 | 50 160 160 160 160 155 155 155 155 160 160 160 167 167 167 166 50 Average Speed 158 | 145 160 160 160 160 156 156 155 159 160 160 165 167 167 167 166 92 Slowest Speed 450 | 160 160 160 160 160 175 205 155 160 160 160 180 167 167 167 167 450 Overloaded Moves . | . . . . . . . . . . . . . . . . . Propulsion Burnouts . | . . . . . . . . . . . . . . . . . Robots Hopped . | . . . . . . . . . . . . . . . . . Cave-ins Triggered . | . . . . . . . . . . . . . . . . . Exploration Rate (%) 51 | 4 39 36 59 60 27 7 59 95 86 58 26 4 95 79 96 49 Regions Visited 16 Branch Regions 9 Pre-discovered Areas . | . . . . . . . . . . . . . . . . . Known Exits Taken 16 | 1 1 1 1 1 1 1 1 1 1 1 1 1 1 1 1 . Unknown Exits Taken . | . . . . . . . . . . . . . . . . . Scrap Searched 6 | . . . 1 . . . . . . . . . 3 1 . 1 Spaces Dug . | . . . . . . . . . . . . . . . . . Terrain Destroyed 508 | . 6 1 . 1 36 14 16 1 2 10 80 5 39 12 285 . Melee . | . . . . . . . . . . . . . . . . . Projectile 118 | . . 1 . 1 . . . 1 2 10 31 5 39 12 16 . AOE 390 | . 6 . . . 36 14 16 . . . 49 . . . 269 . Terrain Rammed . | . . . . . . . . . . . . . . . . . Walls Destroyed . | . . . . . . . . . . . . . . . . . Machines Disabled . | . . . . . . . . . . . . . . . . . Actions | -11 -10 -9 -9 -8 -7 -6 -6 -6 -6 -6 -5 -4 -4 -4 -4 -3 --------- Run | Scr Mat Mat Min Mat Fac Fac Ext Cet Arc Hub Fac Fac Upp Upp War Pro Total 11468 | 88 358 458 808 921 1483 311 591 549 194 643 1545 259 917 620 1246 477 Wait 1979 | 28 127 2 418 118 183 2 154 106 20 35 264 146 47 26 264 39 Move 8914 | 44 219 412 381 750 1233 282 403 426 171 580 1151 93 847 581 930 411 Hop . | . . . . . . . . . . . . . . . . . Pick Up 96 | 9 5 10 3 7 10 6 2 5 . 4 22 7 2 . 3 1 Fast Attach 8 | . 1 . . 2 1 . . . . 3 . . . . 1 . Attach 79 | 7 1 5 . 4 7 6 5 3 . . 22 5 2 1 8 3 Detach 2 | . . . . . . . . . . . . . . . . 2 Swap 8 | . . . . 2 4 . 1 . . . . 1 . . . . Drop 62 | . 1 3 3 7 7 4 4 4 . 3 14 3 1 1 4 3 Fire 301 | . 4 26 3 31 38 11 22 5 3 17 71 3 18 11 35 3 Melee . | . . . . . . . . . . . . . . . . . Ram 10 | . . . . . . . . . . . . . . . . 10 Kick . | . . . . . . . . . . . . . . . . . Crush 9 | . . . . . . . . . . 1 1 1 . . 1 5 Escape Stasis . | . . . . . . . . . . . . . . . . . Rewire . | . . . . . . . . . . . . . . . . . Trap . | . . . . . . . . . . . . . . . . . Miscellaneous . | . . . . . . . . . . . . . . . . . Route ------- -11/Scrapyard -10/Materials (discovered 4 exits: *Mat x3 / *Min) -9/Materials -9/Mines (discovered 2 exits: *Mat x2) -8/Materials (discovered 2 exits: *Fac x2) -7/Factory (discovered 5 exits: *Fac x4 / *Low) -6/Factory -6/Extension (discovered 3 exits: *Fac x2 / *Cet) -6/Cetus (discovered 3 exits: *Fac x2 / *Arc) -6/Archives (discovered 3 exits: *Fac / *Hub x2) -6/Hub_04(d) (discovered 3 exits: *Fac x3) -5/Factory -4/Factory -4/Upper Caves -4/Upper Caves -4/Warlord -3/Proximity Caves History --------- Turn | Location | Event 10 | -11/Scrapyard | Identified exit to Materials 10 | -11/Scrapyard | Discovered exit to Materials (range 15) 109 | -11/Scrapyard | Entered Materials 109 | -10/Materials | Evolved 1 slot: Power x1 134 | -10/Materials | Identified exit to Materials 301 | -10/Materials | Build established: Hacker-Mutant 378 | -10/Materials | Identified exit to Mines 378 | -10/Materials | Discovered exit to Mines (range 7) 607 | -10/Materials | Entered another Materials area 607 | -9/Materials | Evolved 2 slots: Utility x1, Weapon x1 921 | -9/Materials | Build established: Hacker-Tank 1092 | -9/Materials | Identified exit to Mines 1092 | -9/Materials | Discovered exit to Mines (range 6) 1364 | -9/Materials | Entered Mines 1388 | -9/Mines | Learned Materials terminal intel 2169 | -9/Mines | Identified exit to Materials 2169 | -9/Mines | Discovered exit to Materials (range 6) 2181 | -9/Mines | Discovered exit to Materials (range 6) 2221 | -9/Mines | Learned Materials garrison access intel 2225 | -9/Mines | Met a Derelict shopkeep closing up shop 2406 | -9/Mines | Entered Materials 2406 | -8/Materials | Evolved 2 slots: Propulsion x1, Utility x1 2407 | -8/Materials | Loaded intel: 12 terminal locations 2408 | -8/Materials | Loaded intel: 1 garrison access location 3234 | -8/Materials | Identified exit to Factory 3234 | -8/Materials | Discovered exit to Factory (range 4) 3768 | -8/Materials | Discovered exit to Factory (range 16) 3840 | -8/Materials | Entered Factory 3840 | -7/Factory | Evolved 2 slots: Utility x1, Weapon x1 3993 | -7/Factory | Identified exit to Factory 4032 | -7/Factory | Identified exit to Lower Caves 4032 | -7/Factory | Discovered exit to Lower Caves (range 16) 6115 | -7/Factory | Entered another Factory area 6115 | -6/Factory | Evolved 2 slots: Utility x2 6419 | -6/Factory | Build established: Hacker-Gunner 6502 | -6/Factory | Identified exit to Extension 6502 | -6/Factory | Discovered exit to Extension (range 9) 6608 | -6/Factory | Entered Extension 6723 | -6/Extension | Spotted B-75 Beast 6745 | -6/Extension | Destroyed B-75 Beast 6761 | -6/Extension | Spotted B-75 Beast 6772 | -6/Extension | Destroyed B-75 Beast 6842 | -6/Extension | Identified exit to Factory 6842 | -6/Extension | Discovered exit to Factory (range 3) 7017 | -6/Extension | Rescued a captive Derelict 7018 | -6/Extension | Rescued a captive Derelict 7060 | -6/Extension | Rescued a captive Derelict 7061 | -6/Extension | Rescued a captive Derelict 7086 | -6/Extension | Rescued A7 7193 | -6/Extension | Rescued a captive Derelict 7194 | -6/Extension | Rescued a captive Derelict 7219 | -6/Extension | Rescued a captive Derelict 7221 | -6/Extension | Rescued a captive Derelict 7248 | -6/Extension | Rescued a captive Derelict 7249 | -6/Extension | Rescued a captive Derelict 7279 | -6/Extension | Rescued a captive Derelict 7309 | -6/Extension | Discovered exit to Factory (range 10) 7310 | -6/Extension | Identified exit to Cetus 7310 | -6/Extension | Discovered exit to Cetus (range 6) 7468 | -6/Extension | Entered Cetus 7468 | -6/Cetus | Accompanied by 11 allies (A7) 7473 | -6/Cetus | Acquired a Cetus Manufacturing Module code from A7 7490 | -6/Cetus | Spotted Cetus Guard 7490 | -6/Cetus | Spotted Cetus Guard 7494 | -6/Cetus | Spotted Cetus Guard 7496 | -6/Cetus | Spotted Cetus Guard 7499 | -6/Cetus | Allies destroyed Cetus Guard 7501 | -6/Cetus | Allies destroyed Cetus Guard 7503 | -6/Cetus | Allies destroyed Cetus Guard 7509 | -6/Cetus | Allies destroyed Cetus Guard 7637 | -6/Cetus | Started Cetus Manufacturing Module 7651 | -6/Cetus | Escorted A7 to Cetus Mainframe 7662 | -6/Cetus | Manufactured an Enhanced Grunt 7687 | -6/Cetus | Manufactured an Enhanced Grunt 7712 | -6/Cetus | Manufactured an Enhanced Grunt 7737 | -6/Cetus | Manufactured an Enhanced Grunt 7752 | -6/Cetus | Identified exit to Archives 7752 | -6/Cetus | Discovered exit to Archives (range 15) 7762 | -6/Cetus | Manufactured an Enhanced Grunt 7817 | -6/Cetus | Spotted Cetus Guard 7817 | -6/Cetus | Spotted Cetus Guard 7822 | -6/Cetus | Spotted Cetus Guard 7823 | -6/Cetus | Spotted Cetus Guard 7830 | -6/Cetus | Allies destroyed Cetus Guard 7831 | -6/Cetus | Allies destroyed Cetus Guard 7833 | -6/Cetus | Allies destroyed Cetus Guard 7835 | -6/Cetus | Allies destroyed Cetus Guard 7836 | -6/Cetus | Discovered exit to Factory (range 15) 7895 | -6/Cetus | Met Revision 17 8057 | -6/Cetus | Build established: Commander-Gunner 8069 | -6/Cetus | Discovered exit to Factory (range 15) 8281 | -6/Cetus | Entered Archives 8281 | -6/Archives | Accompanied by 9 allies (A7) 8286 | -6/Archives | Received a hacking code to weaken MAIN.C 8350 | -6/Archives | Unable to access archive contents 8376 | -6/Archives | Unable to access archive contents 8379 | -6/Archives | Identified exit to Hub_04(d) 8379 | -6/Archives | Discovered exit to Hub_04(d) (range 16) 8392 | -6/Archives | Unable to access archive contents 8398 | -6/Archives | Discovered exit to Hub_04(d) (range 13) 8432 | -6/Archives | Discovered exit to Factory (range 16) 8539 | -6/Archives | Unable to access archive contents 8584 | -6/Archives | Entered Hub_04(d) 8584 | -6/Hub_04(d) | Accompanied by 6 allies 8593 | -6/Hub_04(d) | Discovered exit to Factory (range 15) 8912 | -6/Hub_04(d) | Build established: Hacker-Gunner 9164 | -6/Hub_04(d) | Discovered exit to Factory (range 4) 9557 | -6/Hub_04(d) | Discovered exit to Factory (range 15) 9614 | -6/Hub_04(d) | Entered Factory 9614 | -5/Factory | Accompanied by 1 ally 9614 | -5/Factory | Evolved 2 slots: Propulsion x1, Weapon x1 9902 | -5/Factory | Build established: Scavenger-Gunner 9981 | -5/Factory | Core integrity fell below 50% 10322 | -5/Factory | Build established: Scavenger-Tank 11882 | -5/Factory | Spotted B-75 Beast 11896 | -5/Factory | Destroyed B-75 Beast 12074 | -5/Factory | Identified exit to Factory 12074 | -5/Factory | Discovered exit to Factory (range 8) 12087 | -5/Factory | Entered another Factory area 12087 | -4/Factory | Evolved 2 slots: Propulsion x1, Utility x1 12286 | -4/Factory | Fabricated Mic. Fission Core (x2) 12374 | -4/Factory | Local fabrication network quarantined 12386 | -4/Factory | Build established: Scavenger-Gunner 12393 | -4/Factory | Identified exit to Upper Caves 12393 | -4/Factory | Discovered exit to Upper Caves (range 6) 12416 | -4/Factory | Entered Upper Caves 13390 | -4/Upper Caves | Learned location of 1 exit from Research 13433 | -4/Upper Caves | Attracted the attention of an 0b10 base 13493 | -4/Upper Caves | Destroyed 7 combat bots 13882 | -4/Upper Caves | Identified exit to Upper Caves 13882 | -4/Upper Caves | Discovered exit to Upper Caves (range 8) 13950 | -4/Upper Caves | Entered another Upper Caves area 14231 | -4/Upper Caves | Attracted the attention of an 0b10 checkpoint 14561 | -4/Upper Caves | Build established: Hacker-Gunner 14976 | -4/Upper Caves | Identified exit to Warlord 14976 | -4/Upper Caves | Discovered exit to Warlord (range 6) 14987 | -4/Upper Caves | Entered Warlord 15560 | -4/Warlord | Opened side exit 15662 | -4/Warlord | Identified exit to Proximity Caves 15662 | -4/Warlord | Discovered exit to Proximity Caves (range 9) 15835 | -4/Warlord | Visited the Vortex Lab 15844 | -4/Warlord | Warlord's base attacked by MAIN.C 16194 | -4/Warlord | Warlord forces counterattacked 16217 | -4/Warlord | Met Warlord 16458 | -4/Warlord | Spotted Striker 16470 | -4/Warlord | Spotted B-90 Cyclops 16473 | -4/Warlord | Destroyed Striker 16519 | -4/Warlord | Warlord base infiltrated, sounded retreat 16519 | -4/Warlord | Destroyed B-90 Cyclops 16624 | -4/Warlord | Spotted Executioner 16624 | -4/Warlord | Spotted Striker 16638 | -4/Warlord | Destroyed Striker 16643 | -4/Warlord | Destroyed Executioner 16699 | -4/Warlord | Lost 6 parts (1n3u2w) 16822 | -4/Warlord | Spotted Executioner 16831 | -4/Warlord | Destroyed Executioner 16848 | -4/Warlord | Spotted Striker 16853 | -4/Warlord | Destroyed Striker 16894 | -4/Warlord | Spotted Executioner 16926 | -4/Warlord | Destroyed 28 combat bots 16943 | -4/Warlord | Entered Proximity Caves 16971 | -3/Proximity Caves | Lost 6 parts (1p1n1u3w) 17023 | -3/Proximity Caves | Attracted the attention of an 0b10 checkpoint 17104 | -3/Proximity Caves | Lost 3 parts (1n1u1w) 17140 | -3/Proximity Caves | Attracted the attention of an 0b10 outpost 17180 | -3/Proximity Caves | Core integrity fell below 50% 17220 | -3/Proximity Caves | Build established: Hacker-Mutant 17229 | -3/Proximity Caves | Lost 6 parts (1p3n2u) 17345 | -3/Proximity Caves | Core integrity fell below 20% 17393 | -3/Proximity Caves | Destroyed by B-74 Champion with Powered Hammer Last Messages --------------- Acquired Adv. Heavy Treads. Acquired 17 matter. Drone sends a signal. Activated siege mode. Penetrated by Slug. Slug penetrates Wall. Ended siege mode. Penetrated by Slug. Slug penetrates Wall. Slammed into H-77 Assassin. Penetrated by Slug. Slug penetrates Wall. Slammed into G-73 Enforcer. Penetrated by Slug. Slug penetrates Wall. Penetrated by Slug. Slammed into H-77 Assassin. Slammed into B-74 Champion. [Achievement: 20k Club] [Achievement: Achiever] Map ----- +----------------------------------------------------+ | ?????????????????????????????????????????????????? | | ?????????????????????????????????????????????????? | | ?????????????????????????????????????????????????? | | ?????????????????????????????????????????????????? | | ?????????????????????????????????????????????????? | | ?????????????????????????????????????????????????? | | ?????????##########??????????????????????????????? | | ?????????# #??????????????????????????????? | | ?????????# #??????????????????????????????? | | ?????????# "" " "#??????????????????????????????? | | ?????????# """ "#??????????????????????????????? | | #"##?????# "" "" #??????????????????????????????? | | #?????# " #??????????????????????????????? | | ##????# """" #?????#####???###??????????????? | | ##???# """"" #????## ##### ##?####????????? | | #???# "" ###### ### ##???????? | | #??## #???????? | | ##??# ###???????? | | # #???# ### ## ## ###?????????? | | ## #???# #?## #### ## #######???????????? | | ?# #???# #??#####??## ### ###?????????????????? | | ?# #?### #??????????###?## ##??????????????????? | | ?# ### #????####??????## ##?????????????????? | | ?# ## #???## ######## g ##????????????????? | | ## ## ##### bm g #????????????????? | | # ### b @ h#####????????????????? | | #?## #####????????????????????? | | ##?#### ###??????????????????????? | | ##???## #??????????????????????? | | ####?## ?????????????????? | | ! ##?#### ## ?????????????????? | | ###### #?# ?????????????????? | | #??#### ??????????????????? | | ## #?????? ??????????????????? | | ?# #??????## ??????????????????? | | # ## ????????????????????????? | | # #?# #??????????????????????? | | ## #?? #??????????????????????? | | ?# #?? #??????????????????????? | | ?# #### ##?? #?????????????????????? | | ?# ## #??###??? #????????????????????? | | ?###### #?????????## ?????????????????????? | | #?????# ##??????????? ?????????????????????? | | #?????# #????????????? ??????????????????????? | | #?????# #???????????????????????????????????????? | | #?????# ????????????????????????????????????????? | | #????? ????????????????????????????????????????? | | ??????? ????????????????????????????????????????? | | ?????????????????????????????????????????????????? | | ?????????????????????????????????????????????????? | +----------------------------------------------------+ Best States ------------- Heat Dissipation 62 Energy Generation 36 Energy Capacity 770 Matter Stores 550 Matter Capacity 550 Sight Range 16 Terrain Scan Density 10 Additional Mass Support 9 Armor Coverage 375 Resistance: KI 35 Resistance: TH 35 Resistance: EX 35 Resistance: EM 35 Resistance: I 35 Resistance: S 35 Resistance: P 35 Utility Shielding 33 Evasion (%) 50 Targeting Accuracy 8 Recoil Reduction 5 Matter Filtering 30 Kinecelleration 40 Offensive Hacking 20 Item Schematics ----------------- Flak Cannon | -8/Materials | Scanalyzed Matter Filter | -8/Materials | Scanalyzed Mic. Fission Core | -7/Factory | Hacked Robot Schematics ------------------ H-55 Commando | -6/Factory | Hacked Fabricated ------------ Mic. Fission Core | x2 | -4/Factory Alien Tech Used ----------------- None Achievements -------------- 20k Club A Powerful Ally? Achiever Charge!!! Dynamic Key It Was An Accident, I Swear Killing Spree Main Advantage More Dakka Please Prison Break Project G-00 Quick And Dirty Revising The Future Challenges ------------ None Game ------ Seed RecyclingThermalDoublenader Manual? 0 Play Time 03:20:08 Cumulative 30.5 hours Start 2021.08.18 @ 16:16:11 End 2021.08.19 @ 11:27:20 Sessions 3 Manual Loads 0 Difficulty Explorer Special Mode None Game No. 27 Rogue 21 Adventurer 0 Explorer 6 Win Type - Total 0 Types 0/0/0/0/0/0/0/0/0 Lore% 24 Gallery% 28 Achievement% 28 Wizard Run 0 Options --------- ASCII 0 Keyboard 0 Movement Mouse Keybinds 0 Fullscreen 1 Font 18/SmallcapsGlow Map View 76x50 Tactical HUD 0 Map Filters NONE Filters NONE Steam 1 RUN: 2dd15496-0198-46fa-91e0-70695c7d4a69